[Event "Late-Titled-Tuesday-Blitz-March-05-2024"]
[Site "Chess.com"]
[Date "2024.03.05"]
[Round "9"]
[White "yaguigor"]
[Black "Midgardsormur"]
[Result "1-0"]
[WhiteElo "2572"]
[BlackElo "2454"]
[TimeControl "180+1"]
[EndTime "15:41:50 PST"]
[Termination "yaguigor won by resignation"]

1. d4 {[%clk 0:02:49.4]} 1... Nf6 {[%clk 0:02:59.4]} 2. c4 {[%clk 0:02:48.5]}
2... e6 {[%clk 0:02:59.2]} 3. Nc3 {[%clk 0:02:48.1]} 3... Bb4 {[%clk 0:02:58.7]}
4. Qc2 {[%clk 0:02:47.8]} 4... O-O {[%clk 0:02:54.6]} 5. a3 {[%clk 0:02:47.1]}
5... Bxc3+ {[%clk 0:02:54.1]} 6. Qxc3 {[%clk 0:02:48]} 6... d5 {[%clk
0:02:54.2]} 7. Bg5 {[%clk 0:02:37]} 7... c5 {[%clk 0:02:53.1]} 8. cxd5 {[%clk
0:02:13.5]} 8... cxd4 {[%clk 0:02:15]} 9. Qxd4 {[%clk 0:02:10.4]} 9... Nc6
{[%clk 0:01:43.2]} 10. Qh4 {[%clk 0:02:06.6]} 10... Qxd5 {[%clk 0:01:37.2]} 11.
Bxf6 {[%clk 0:02:05.3]} 11... gxf6 {[%clk 0:01:38.1]} 12. Qxf6 {[%clk
0:02:02.2]} 12... Nd4 {[%clk 0:01:31.4]} 13. Rc1 {[%clk 0:01:51.4]} 13... Nb3
{[%clk 0:01:17.8]} 14. Rd1 {[%clk 0:01:45.1]} 14... Qa5+ {[%clk 0:00:46.1]} 15.
Qc3 {[%clk 0:01:44.1]} 15... Qxc3+ {[%clk 0:00:46.2]} 16. bxc3 {[%clk
0:01:44.9]} 16... b6 {[%clk 0:00:46.9]} 17. f3 {[%clk 0:01:42.4]} 17... Ba6
{[%clk 0:00:45.4]} 18. e4 {[%clk 0:01:42.9]} 18... Bxf1 {[%clk 0:00:45.3]} 19.
Kxf1 {[%clk 0:01:42.5]} 19... Rac8 {[%clk 0:00:45.2]} 20. Ne2 {[%clk 0:01:42.3]}
20... Nc5 {[%clk 0:00:39.6]} 21. Kf2 {[%clk 0:01:40.1]} 21... Na4 {[%clk
0:00:39.3]} 22. Rd7 {[%clk 0:01:37.3]} 22... Nxc3 {[%clk 0:00:38.4]} 23. Nxc3
{[%clk 0:01:34.2]} 23... Rxc3 {[%clk 0:00:37.8]} 24. Rxa7 {[%clk 0:01:35]} 24...
Rd8 {[%clk 0:00:38.1]} 25. Kg3 {[%clk 0:01:28.8]} 25... Rd2 {[%clk 0:00:36.4]}
26. h4 {[%clk 0:01:27.4]} 26... Ra2 {[%clk 0:00:30.7]} 27. h5 {[%clk 0:01:19.4]}
27... h6 {[%clk 0:00:29.1]} 28. Rb1 {[%clk 0:00:57.4]} 28... Rcxa3 {[%clk
0:00:19]} 29. Rxa3 {[%clk 0:00:55.9]} 29... Rxa3 {[%clk 0:00:19.9]} 30. Rxb6
{[%clk 0:00:55.9]} 30... Kg7 {[%clk 0:00:19.9]} 31. e5 {[%clk 0:00:49.8]} 31...
Re3 {[%clk 0:00:17.6]} 32. Kf4 {[%clk 0:00:47.1]} 32... Re1 {[%clk 0:00:16.4]}
33. g3 {[%clk 0:00:42.5]} 33... Ra1 {[%clk 0:00:15.4]} 34. Rb4 {[%clk
0:00:36.9]} 34... Rh1 {[%clk 0:00:14.5]} 35. g4 {[%clk 0:00:35.7]} 35... Rg1
{[%clk 0:00:14.3]} 36. Ra4 {[%clk 0:00:33.4]} 36... Rg2 {[%clk 0:00:14.3]} 37.
Ke3 {[%clk 0:00:31.5]} 37... Rg1 {[%clk 0:00:14.1]} 38. Kf2 {[%clk 0:00:31.7]}
38... Rb1 {[%clk 0:00:13.7]} 39. f4 {[%clk 0:00:30.5]} 39... Rh1 {[%clk
0:00:13.6]} 40. Kg2 {[%clk 0:00:29.6]} 40... Re1 {[%clk 0:00:12.2]} 41. Ra7
{[%clk 0:00:28.3]} 41... Re4 {[%clk 0:00:11.1]} 42. Kf3 {[%clk 0:00:27.7]} 42...
Re1 {[%clk 0:00:11.1]} 43. Ra2 {[%clk 0:00:25.9]} 43... Rf1+ {[%clk 0:00:10.6]}
44. Rf2 {[%clk 0:00:25.6]} 44... Re1 {[%clk 0:00:10.7]} 45. Rg2 {[%clk
0:00:24.4]} 45... Rf1+ {[%clk 0:00:10.6]} 46. Ke3 {[%clk 0:00:24]} 46... Re1+
{[%clk 0:00:10.8]} 47. Re2 {[%clk 0:00:19.6]} 47... Rg1 {[%clk 0:00:10.7]} 48.
Kf3 {[%clk 0:00:19]} 48... Rf1+ {[%clk 0:00:11]} 49. Rf2 {[%clk 0:00:18.4]}
49... Rg1 {[%clk 0:00:10]} 50. f5 {[%clk 0:00:17.5]} 50... exf5 {[%clk
0:00:09.2]} 51. gxf5 {[%clk 0:00:17.4]} 51... Rg5 {[%clk 0:00:09.9]} 52. Rg2
{[%clk 0:00:17.2]} 52... Rxg2 {[%clk 0:00:02.4]} 53. Kxg2 {[%clk 0:00:16.4]}
53... Kf8 {[%clk 0:00:03.3]} 54. Kf3 {[%clk 0:00:15]} 54... Ke8 {[%clk
0:00:03.3]} 55. Ke4 {[%clk 0:00:14.9]} 55... Kd8 {[%clk 0:00:02.7]} 56. Kd5
{[%clk 0:00:13.3]} 56... Kd7 {[%clk 0:00:03]} 57. e6+ {[%clk 0:00:10.9]} 57...
fxe6+ {[%clk 0:00:03.9]} 58. fxe6+ {[%clk 0:00:10.4]} 58... Ke7 {[%clk
0:00:04.8]} 59. Ke5 {[%clk 0:00:10.1]} 59... Ke8 {[%clk 0:00:05.1]} 60. Kf6
{[%clk 0:00:09.8]} 60... Kf8 {[%clk 0:00:06]} 61. Kg6 {[%clk 0:00:09.6]} 61...
Ke7 {[%clk 0:00:05.9]} 62. Kxh6 {[%clk 0:00:09.8]} 62... Kxe6 {[%clk 0:00:06.2]}
63. Kg7 {[%clk 0:00:10.5]} 1-0

[Event "Late-Titled-Tuesday-Blitz-March-05-2024"]
[Site "Chess.com"]
[Date "2024.03.05"]
[Round "9"]
[White "Chopper1905"]
[Black "ameetghasi100"]
[Result "0-1"]
[WhiteElo "2949"]
[BlackElo "2802"]
[TimeControl "180+1"]
[EndTime "15:41:56 PST"]
[Termination "ameetghasi100 won by resignation"]

1. d4 {[%clk 0:02:54.3]} 1... g6 {[%clk 0:03:00.2]} 2. e4 {[%clk 0:02:52.3]}
2... Bg7 {[%clk 0:03:00.5]} 3. Nf3 {[%clk 0:02:50.9]} 3... d6 {[%clk 0:03:00.7]}
4. c3 {[%clk 0:02:48.6]} 4... Nf6 {[%clk 0:03:00.9]} 5. Bd3 {[%clk 0:02:48.6]}
5... O-O {[%clk 0:03:01.3]} 6. O-O {[%clk 0:02:49]} 6... Nc6 {[%clk 0:03:01.9]}
7. h3 {[%clk 0:02:47.7]} 7... Nd7 {[%clk 0:03:01.9]} 8. Be3 {[%clk 0:02:42.6]}
8... a6 {[%clk 0:03:01]} 9. Nbd2 {[%clk 0:02:40.9]} 9... e5 {[%clk 0:03:00.4]}
10. a3 {[%clk 0:02:36.9]} 10... b6 {[%clk 0:02:59.2]} 11. Rc1 {[%clk 0:02:35.2]}
11... Bb7 {[%clk 0:02:59.2]} 12. b4 {[%clk 0:02:35.8]} 12... a5 {[%clk
0:02:55.9]} 13. b5 {[%clk 0:02:34.5]} 13... Ne7 {[%clk 0:02:55.7]} 14. a4 {[%clk
0:02:33.8]} 14... d5 {[%clk 0:02:33.7]} 15. Qb3 {[%clk 0:02:23]} 15... exd4
{[%clk 0:02:06.9]} 16. cxd4 {[%clk 0:02:21.6]} 16... dxe4 {[%clk 0:02:06.8]} 17.
Bxe4 {[%clk 0:02:15.9]} 17... Bxe4 {[%clk 0:02:06]} 18. Nxe4 {[%clk 0:02:16.8]}
18... Nf6 {[%clk 0:01:56.1]} 19. Nxf6+ {[%clk 0:02:05.9]} 19... Bxf6 {[%clk
0:01:57]} 20. Ne5 {[%clk 0:01:39.3]} 20... Nd5 {[%clk 0:01:32.9]} 21. Bh6 {[%clk
0:01:34.5]} 21... Re8 {[%clk 0:01:32.6]} 22. Rfe1 {[%clk 0:01:31.8]} 22... Qd6
{[%clk 0:01:24.5]} 23. Rc6 {[%clk 0:01:24.4]} 23... Qb4 {[%clk 0:01:23.1]} 24.
Qd1 {[%clk 0:01:07]} 24... Rad8 {[%clk 0:01:20]} 25. Rc4 {[%clk 0:00:58.1]}
25... Qb2 {[%clk 0:00:45.4]} 26. Nc6 {[%clk 0:00:44.8]} 26... Ra8 {[%clk
0:00:35]} 27. Rxe8+ {[%clk 0:00:29]} 27... Rxe8 {[%clk 0:00:35.9]} 28. Qf3
{[%clk 0:00:28.1]} 28... Qb1+ {[%clk 0:00:29.8]} 29. Kh2 {[%clk 0:00:21.9]}
29... Qe4 {[%clk 0:00:28.4]} 30. Qg3 {[%clk 0:00:12.7]} 30... Bh4 {[%clk
0:00:23.6]} 31. Qb3 {[%clk 0:00:12.6]} 31... Bxf2 {[%clk 0:00:20.7]} 32. Rc2
{[%clk 0:00:06.3]} 32... Bxd4 {[%clk 0:00:18.5]} 33. Rc4 {[%clk 0:00:06.2]}
33... Be5+ {[%clk 0:00:18.2]} 34. Nxe5 {[%clk 0:00:06.2]} 34... Qxe5+ {[%clk
0:00:19.1]} 35. Qg3 {[%clk 0:00:06]} 35... Qxg3+ {[%clk 0:00:16.4]} 36. Kxg3
{[%clk 0:00:06.9]} 36... f6 {[%clk 0:00:15.9]} 37. Rd4 {[%clk 0:00:05.4]} 37...
Re5 {[%clk 0:00:16.3]} 38. Bf4 {[%clk 0:00:03.5]} 38... Nxf4 {[%clk 0:00:15.5]}
39. Kxf4 {[%clk 0:00:04]} 39... Kf7 {[%clk 0:00:14.9]} 40. h4 {[%clk 0:00:04.2]}
40... h6 {[%clk 0:00:14.9]} 41. g3 {[%clk 0:00:02.6]} 41... g5+ {[%clk
0:00:15.2]} 42. hxg5 {[%clk 0:00:02.8]} 42... hxg5+ {[%clk 0:00:16.1]} 43. Kg4
{[%clk 0:00:03.7]} 43... Kg6 {[%clk 0:00:13]} 44. Kf3 {[%clk 0:00:03.8]} 44...
Rc5 {[%clk 0:00:13.3]} 45. g4 {[%clk 0:00:03.6]} 45... f5 {[%clk 0:00:13.6]} 46.
gxf5+ {[%clk 0:00:03.5]} 46... Kxf5 {[%clk 0:00:14.5]} 47. Rd7 {[%clk
0:00:03.6]} 47... Rc3+ {[%clk 0:00:14.5]} 48. Kf2 {[%clk 0:00:04]} 48... Rc4
{[%clk 0:00:15]} 49. Rd5+ {[%clk 0:00:02.7]} 49... Kf4 {[%clk 0:00:15]} 50. Rd7
{[%clk 0:00:02.6]} 50... Rc2+ {[%clk 0:00:15.3]} 51. Ke1 {[%clk 0:00:02.7]}
51... g4 {[%clk 0:00:15.7]} 52. Rf7+ {[%clk 0:00:02.7]} 52... Kg3 {[%clk
0:00:16]} 53. Kf1 {[%clk 0:00:02.8]} 53... Rc1+ {[%clk 0:00:15.4]} 54. Ke2
{[%clk 0:00:03.3]} 54... Kg2 {[%clk 0:00:16.3]} 55. Rg7 {[%clk 0:00:03.2]} 55...
g3 {[%clk 0:00:16.7]} 56. Rg4 {[%clk 0:00:03.3]} 56... Rc2+ {[%clk 0:00:16.6]}
57. Kd3 {[%clk 0:00:03.5]} 57... Rc5 {[%clk 0:00:16.4]} 58. Ke2 {[%clk
0:00:03.6]} 58... Rc3 {[%clk 0:00:16.5]} 59. Kd2 {[%clk 0:00:03.9]} 59... Ra3
{[%clk 0:00:16.1]} 60. Ke2 {[%clk 0:00:04.2]} 60... Ra2+ {[%clk 0:00:15.6]} 61.
Ke3 {[%clk 0:00:04.7]} 61... Kh2 {[%clk 0:00:15.7]} 62. Rh4+ {[%clk 0:00:05]}
62... Kg1 {[%clk 0:00:15.9]} 63. Rh8 {[%clk 0:00:04.4]} 63... g2 {[%clk
0:00:15.6]} 64. Kd3 {[%clk 0:00:04.2]} 64... Rf2 {[%clk 0:00:15.3]} 65. Ke3
{[%clk 0:00:04]} 65... Kf1 {[%clk 0:00:14.9]} 0-1

[Event "Late-Titled-Tuesday-Blitz-March-05-2024"]
[Site "Chess.com"]
[Date "2024.03.05"]
[Round "9"]
[White "jk13"]
[Black "santosalberto1987"]
[Result "1-0"]
[WhiteElo "2653"]
[BlackElo "2545"]
[TimeControl "180+1"]
[EndTime "15:41:59 PST"]
[Termination "jk13 won on time"]

1. h4 {[%clk 0:03:00.9]} 1... d5 {[%clk 0:02:59.4]} 2. d4 {[%clk 0:03:00.9]}
2... Nf6 {[%clk 0:02:58.1]} 3. c3 {[%clk 0:03:01.4]} 3... Bf5 {[%clk 0:02:55.1]}
4. Bg5 {[%clk 0:03:01.6]} 4... Nbd7 {[%clk 0:02:54.5]} 5. Nd2 {[%clk 0:03:00.5]}
5... h6 {[%clk 0:02:51.3]} 6. Bf4 {[%clk 0:02:59.1]} 6... c6 {[%clk 0:02:48.1]}
7. e3 {[%clk 0:02:59.2]} 7... e6 {[%clk 0:02:47.4]} 8. Ngf3 {[%clk 0:02:57.6]}
8... Be7 {[%clk 0:02:47.1]} 9. Ne5 {[%clk 0:02:57.3]} 9... Nxe5 {[%clk
0:02:46.3]} 10. Bxe5 {[%clk 0:02:57.2]} 10... Bd6 {[%clk 0:02:42.3]} 11. Nf3
{[%clk 0:02:47.4]} 11... Bxe5 {[%clk 0:02:40.9]} 12. Nxe5 {[%clk 0:02:47.4]}
12... Nd7 {[%clk 0:02:36.2]} 13. Nxd7 {[%clk 0:02:40.2]} 13... Qxd7 {[%clk
0:02:36.2]} 14. g4 {[%clk 0:02:40.9]} 14... Be4 {[%clk 0:02:32.8]} 15. f3 {[%clk
0:02:40.6]} 15... Bg6 {[%clk 0:02:31.8]} 16. h5 {[%clk 0:02:39.4]} 16... Bh7
{[%clk 0:02:32]} 17. Bd3 {[%clk 0:02:40]} 17... Bxd3 {[%clk 0:02:31.6]} 18. Qxd3
{[%clk 0:02:40]} 18... O-O-O {[%clk 0:02:30.5]} 19. O-O-O {[%clk 0:02:40.6]}
19... Qe7 {[%clk 0:02:28.8]} 20. f4 {[%clk 0:02:36.7]} 20... f6 {[%clk
0:02:28.8]} 21. e4 {[%clk 0:02:20.3]} 21... e5 {[%clk 0:02:23]} 22. exd5 {[%clk
0:02:04.6]} 22... Rxd5 {[%clk 0:02:22.6]} 23. Qf5+ {[%clk 0:01:46.1]} 23... Qd7
{[%clk 0:02:02.9]} 24. dxe5 {[%clk 0:01:32.3]} 24... fxe5 {[%clk 0:01:52.9]} 25.
Rxd5 {[%clk 0:01:22]} 25... cxd5 {[%clk 0:01:52.2]} 26. fxe5 {[%clk 0:01:18]}
26... Re8 {[%clk 0:01:44.6]} 27. Re1 {[%clk 0:01:16]} 27... Kc7 {[%clk
0:01:39.1]} 28. e6 {[%clk 0:01:14.5]} 28... Qd6 {[%clk 0:01:39]} 29. a3 {[%clk
0:01:04]} 29... Rf8 {[%clk 0:01:35.7]} 30. e7 {[%clk 0:00:57]} 30... Re8 {[%clk
0:01:13.1]} 31. Re6 {[%clk 0:00:46.5]} 31... Qd7 {[%clk 0:00:52.2]} 32. Qe5+
{[%clk 0:00:44.3]} 32... Kc8 {[%clk 0:00:52.3]} 33. Kb1 {[%clk 0:00:41.1]} 33...
a6 {[%clk 0:00:45.3]} 34. Ka2 {[%clk 0:00:39.5]} 34... Qb5 {[%clk 0:00:36.9]}
35. Qf5 {[%clk 0:00:22.5]} 35... Kb8 {[%clk 0:00:31]} 36. Ka1 {[%clk 0:00:14.2]}
36... Ka7 {[%clk 0:00:30.3]} 37. Qf2+ {[%clk 0:00:13.8]} 37... Ka8 {[%clk
0:00:28.2]} 38. Qe2 {[%clk 0:00:11.6]} 38... Qxe2 {[%clk 0:00:25.4]} 39. Rxe2
{[%clk 0:00:12.5]} 39... Kb8 {[%clk 0:00:25.4]} 40. Rd2 {[%clk 0:00:07.6]} 40...
Rxe7 {[%clk 0:00:24.8]} 41. Rxd5 {[%clk 0:00:08.3]} 41... Re4 {[%clk 0:00:21.5]}
42. Rd4 {[%clk 0:00:08.7]} 42... Re7 {[%clk 0:00:17.2]} 43. Kb1 {[%clk
0:00:08.5]} 43... Kc7 {[%clk 0:00:17.4]} 44. a4 {[%clk 0:00:08.1]} 44... Kc6
{[%clk 0:00:17.5]} 45. b4 {[%clk 0:00:07.2]} 45... Rf7 {[%clk 0:00:16.3]} 46.
Kc2 {[%clk 0:00:07.2]} 46... Re7 {[%clk 0:00:15.4]} 47. Kb3 {[%clk 0:00:07.4]}
47... Rf7 {[%clk 0:00:15.7]} 48. Kc4 {[%clk 0:00:07.8]} 48... Rf3 {[%clk
0:00:13]} 49. b5+ {[%clk 0:00:06.8]} 49... axb5+ {[%clk 0:00:13.9]} 50. axb5+
{[%clk 0:00:07.5]} 50... Kc7 {[%clk 0:00:13.9]} 51. Kb4 {[%clk 0:00:07.7]} 51...
Rf1 {[%clk 0:00:13.3]} 52. c4 {[%clk 0:00:08.2]} 52... Rb1+ {[%clk 0:00:12.8]}
53. Kc5 {[%clk 0:00:08.5]} 53... Re1 {[%clk 0:00:12.2]} 54. b6+ {[%clk
0:00:08.1]} 54... Kc8 {[%clk 0:00:12.5]} 55. Kd6 {[%clk 0:00:08.3]} 55... Re8
{[%clk 0:00:11.2]} 56. c5 {[%clk 0:00:08.9]} 56... Rd8+ {[%clk 0:00:11]} 57. Ke5
{[%clk 0:00:09.6]} 57... Re8+ {[%clk 0:00:11.3]} 58. Kf5 {[%clk 0:00:10]} 58...
Re1 {[%clk 0:00:09.4]} 59. Kg6 {[%clk 0:00:10.2]} 59... Rc1 {[%clk 0:00:06.7]}
60. Rd5 {[%clk 0:00:09.9]} 60... Rc4 {[%clk 0:00:04.8]} 61. g5 {[%clk
0:00:10.1]} 61... hxg5 {[%clk 0:00:04.3]} 62. Kxg7 {[%clk 0:00:10.3]} 62... Rh4
{[%clk 0:00:02.8]} 63. h6 {[%clk 0:00:10.8]} 63... g4 {[%clk 0:00:02.6]} 64. h7
{[%clk 0:00:11.2]} 64... g3 {[%clk 0:00:02.8]} 65. Rg5 {[%clk 0:00:11.3]} 1-0

[Event "Late-Titled-Tuesday-Blitz-March-05-2024"]
[Site "Chess.com"]
[Date "2024.03.05"]
[Round "9"]
[White "VojtechPlat"]
[Black "Njal28"]
[Result "1/2-1/2"]
[WhiteElo "2875"]
[BlackElo "3002"]
[TimeControl "180+1"]
[EndTime "15:43:28 PST"]
[Termination "Game drawn - insufficient material"]

1. e4 {[%clk 0:02:59.4]} 1... e5 {[%clk 0:02:59.9]} 2. Nf3 {[%clk 0:02:59.6]}
2... Nc6 {[%clk 0:03:00.6]} 3. Bb5 {[%clk 0:02:59.7]} 3... a6 {[%clk 0:03:01]}
4. Ba4 {[%clk 0:03:00]} 4... Nf6 {[%clk 0:03:01.6]} 5. d4 {[%clk 0:03:00.6]}
5... exd4 {[%clk 0:03:00.4]} 6. O-O {[%clk 0:03:00.4]} 6... Be7 {[%clk
0:02:59.8]} 7. Re1 {[%clk 0:03:00.5]} 7... O-O {[%clk 0:02:57.5]} 8. e5 {[%clk
0:03:00.3]} 8... Nd5 {[%clk 0:02:57.3]} 9. Bb3 {[%clk 0:03:00.4]} 9... Nb6
{[%clk 0:02:55.4]} 10. Nxd4 {[%clk 0:03:00.8]} 10... Nxd4 {[%clk 0:02:55.1]} 11.
Qxd4 {[%clk 0:03:01.1]} 11... d5 {[%clk 0:02:55.4]} 12. exd6 {[%clk 0:03:01.3]}
12... Bxd6 {[%clk 0:02:55.9]} 13. Bf4 {[%clk 0:03:00.7]} 13... Qh4 {[%clk
0:02:36.6]} 14. g3 {[%clk 0:03:00.5]} 14... Qg4 {[%clk 0:02:34]} 15. h3 {[%clk
0:02:54]} 15... Qg6 {[%clk 0:02:32.3]} 16. Bxd6 {[%clk 0:02:51]} 16... Qxd6
{[%clk 0:02:33.2]} 17. Qxd6 {[%clk 0:02:49]} 17... cxd6 {[%clk 0:02:33.9]} 18.
h4 {[%clk 0:02:44.2]} 18... d5 {[%clk 0:02:31.9]} 19. Nc3 {[%clk 0:02:41]} 19...
Be6 {[%clk 0:02:30.2]} 20. Ne2 {[%clk 0:02:38.7]} 20... Rfd8 {[%clk 0:02:21.8]}
21. Nd4 {[%clk 0:02:38.5]} 21... Rd6 {[%clk 0:02:20.9]} 22. c3 {[%clk
0:02:38.7]} 22... Kf8 {[%clk 0:02:18.9]} 23. Rad1 {[%clk 0:02:38.5]} 23... a5
{[%clk 0:02:15.2]} 24. Bc2 {[%clk 0:02:36.4]} 24... Bd7 {[%clk 0:02:14.6]} 25.
Bd3 {[%clk 0:02:32.5]} 25... a4 {[%clk 0:02:14.7]} 26. f3 {[%clk 0:02:21.4]}
26... a3 {[%clk 0:02:14.3]} 27. b3 {[%clk 0:02:21.6]} 27... Rc8 {[%clk 0:02:14]}
28. Rc1 {[%clk 0:02:21.9]} 28... h5 {[%clk 0:02:12.5]} 29. Kf2 {[%clk
0:02:21.7]} 29... g6 {[%clk 0:02:12.8]} 30. Red1 {[%clk 0:02:17.9]} 30... Rc5
{[%clk 0:02:07]} 31. Be2 {[%clk 0:02:11.5]} 31... Be8 {[%clk 0:02:06.9]} 32. Rd3
{[%clk 0:02:09.7]} 32... Rd8 {[%clk 0:02:05.7]} 33. Re3 {[%clk 0:02:08.7]} 33...
Rdc8 {[%clk 0:02:04.8]} 34. Ke1 {[%clk 0:02:08.6]} 34... Bd7 {[%clk 0:02:01]}
35. Kd2 {[%clk 0:02:08.6]} 35... R5c7 {[%clk 0:01:58]} 36. Bd3 {[%clk
0:02:04.7]} 36... Rc5 {[%clk 0:01:56.4]} 37. Re5 {[%clk 0:01:59.6]} 37... R5c7
{[%clk 0:01:44.1]} 38. Re3 {[%clk 0:01:57.7]} 38... Ra8 {[%clk 0:01:39.2]} 39.
Bc2 {[%clk 0:01:56.2]} 39... Nc8 {[%clk 0:01:34.4]} 40. Rce1 {[%clk 0:01:54.8]}
40... Nd6 {[%clk 0:01:33.4]} 41. Re5 {[%clk 0:01:54.6]} 41... Bc6 {[%clk
0:01:29.3]} 42. Bxg6 {[%clk 0:01:51.9]} 42... Kg7 {[%clk 0:01:08.4]} 43. Bxh5
{[%clk 0:01:51.4]} 43... Rac8 {[%clk 0:01:08]} 44. Bg4 {[%clk 0:01:51]} 44...
Rh8 {[%clk 0:01:07.5]} 45. Rg5+ {[%clk 0:01:41.8]} 45... Kf8 {[%clk 0:01:06.2]}
46. Rge5 {[%clk 0:01:37.6]} 46... Kg7 {[%clk 0:01:06.2]} 47. h5 {[%clk
0:01:37.9]} 47... Rh6 {[%clk 0:01:03.4]} 48. Re7 {[%clk 0:01:35.6]} 48... Rxe7
{[%clk 0:00:51.8]} 49. Rxe7 {[%clk 0:01:35.3]} 49... Kf6 {[%clk 0:00:52.7]} 50.
Re1 {[%clk 0:01:31.5]} 50... Kg5 {[%clk 0:00:52.9]} 51. Re5+ {[%clk 0:00:42.2]}
51... Kf6 {[%clk 0:00:49.5]} 52. f4 {[%clk 0:00:37.7]} 52... Ne4+ {[%clk
0:00:46.2]} 53. Ke3 {[%clk 0:00:36.2]} 53... Nxg3 {[%clk 0:00:47.1]} 54. Nf5
{[%clk 0:00:33.2]} 54... Nxf5+ {[%clk 0:00:46.1]} 55. Rxf5+ {[%clk 0:00:33.4]}
55... Kg7 {[%clk 0:00:42.9]} 56. Re5 {[%clk 0:00:32.4]} 56... Kf8 {[%clk
0:00:38.1]} 57. Kd4 {[%clk 0:00:30.5]} 57... Rf6 {[%clk 0:00:38.3]} 58. f5
{[%clk 0:00:30.1]} 58... Rh6 {[%clk 0:00:34.6]} 59. Re1 {[%clk 0:00:27.4]} 59...
Rh8 {[%clk 0:00:32.5]} 60. Ke5 {[%clk 0:00:25]} 60... Kg7 {[%clk 0:00:32.1]} 61.
f6+ {[%clk 0:00:24.3]} 61... Kh6 {[%clk 0:00:32.5]} 62. Kf4 {[%clk 0:00:24.2]}
62... Rd8 {[%clk 0:00:30.8]} 63. Re7 {[%clk 0:00:20.9]} 63... d4 {[%clk
0:00:30.7]} 64. Rxf7 {[%clk 0:00:19.8]} 64... dxc3 {[%clk 0:00:25.5]} 65. Bf5
{[%clk 0:00:19.8]} 65... Rd4+ {[%clk 0:00:17.7]} 66. Ke3 {[%clk 0:00:19.9]}
66... Rd5 {[%clk 0:00:13.5]} 67. Bd3 {[%clk 0:00:11.3]} 67... Bb5 {[%clk
0:00:08.3]} 68. Rh7+ {[%clk 0:00:11.1]} 68... Kg5 {[%clk 0:00:08.6]} 69. Bxb5
{[%clk 0:00:10.5]} 69... c2 {[%clk 0:00:08.5]} 70. Rc7 {[%clk 0:00:10]} 70...
Rxb5 {[%clk 0:00:08.5]} 71. Rxc2 {[%clk 0:00:08.9]} 71... Kxf6 {[%clk
0:00:08.7]} 72. Rh2 {[%clk 0:00:08.8]} 72... Kg7 {[%clk 0:00:08.9]} 73. h6+
{[%clk 0:00:09]} 73... Kh7 {[%clk 0:00:09.6]} 74. Kd4 {[%clk 0:00:09.4]} 74...
Rg5 {[%clk 0:00:09.1]} 75. Kc4 {[%clk 0:00:09.8]} 75... Rg4+ {[%clk 0:00:08.3]}
76. Kb5 {[%clk 0:00:10.1]} 76... Rf4 {[%clk 0:00:08.7]} 77. Ka5 {[%clk
0:00:10.3]} 77... Rg4 {[%clk 0:00:08.5]} 78. b4 {[%clk 0:00:10.6]} 78... Rf4
{[%clk 0:00:08.4]} 79. Kb6 {[%clk 0:00:10.9]} 79... Rxb4+ {[%clk 0:00:08.6]} 80.
Ka5 {[%clk 0:00:10.6]} 80... Rb2 {[%clk 0:00:09.5]} 81. Rh3 {[%clk 0:00:10.6]}
81... Rxa2 {[%clk 0:00:09.9]} 82. Rb3 {[%clk 0:00:10.8]} 82... Ra1 {[%clk
0:00:04.5]} 83. Rxb7+ {[%clk 0:00:10.5]} 83... Kxh6 {[%clk 0:00:05.2]} 84. Rb3
{[%clk 0:00:10.7]} 84... a2 {[%clk 0:00:05.6]} 85. Ra3 {[%clk 0:00:11]} 85...
Kg5 {[%clk 0:00:05.9]} 86. Ka4 {[%clk 0:00:11.2]} 86... Kf4 {[%clk 0:00:06.1]}
87. Kb3 {[%clk 0:00:11.6]} 87... Re1 {[%clk 0:00:05.5]} 88. Kxa2 {[%clk
0:00:11.8]} 88... Ke4 {[%clk 0:00:06.2]} 89. Rb3 {[%clk 0:00:12]} 89... Kd4
{[%clk 0:00:06.8]} 90. Rb2 {[%clk 0:00:12.3]} 90... Kc3 {[%clk 0:00:07.2]} 91.
Rb3+ {[%clk 0:00:12.8]} 91... Kc2 {[%clk 0:00:07.1]} 92. Rb2+ {[%clk 0:00:13.2]}
92... Kc3 {[%clk 0:00:07.8]} 93. Rb3+ {[%clk 0:00:13.7]} 93... Kc4 {[%clk
0:00:08.6]} 94. Rb2 {[%clk 0:00:14.1]} 94... Rc1 {[%clk 0:00:08.5]} 95. Rb1
{[%clk 0:00:14.3]} 95... Rc2+ {[%clk 0:00:08.6]} 96. Rb2 {[%clk 0:00:14.6]}
96... Rc3 {[%clk 0:00:09.3]} 97. Kb1 {[%clk 0:00:15.1]} 97... Rg3 {[%clk
0:00:10]} 98. Rc2+ {[%clk 0:00:15.3]} 98... Kb3 {[%clk 0:00:10.6]} 99. Rc1
{[%clk 0:00:15.8]} 99... Rg2 {[%clk 0:00:10.2]} 100. Re1 {[%clk 0:00:16]} 100...
Rb2+ {[%clk 0:00:10.8]} 101. Kc1 {[%clk 0:00:16.5]} 101... Rc2+ {[%clk
0:00:11.7]} 102. Kb1 {[%clk 0:00:16.9]} 102... Rc3 {[%clk 0:00:12.6]} 103. Rd1
{[%clk 0:00:16.6]} 103... Rf3 {[%clk 0:00:13.2]} 104. Re1 {[%clk 0:00:16.5]}
104... Rd3 {[%clk 0:00:13.4]} 105. Rf1 {[%clk 0:00:16.4]} 105... Rh3 {[%clk
0:00:13.8]} 106. Kc1 {[%clk 0:00:16.5]} 106... Ka3 {[%clk 0:00:13.1]} 107. Kc2
{[%clk 0:00:16.3]} 107... Rb3 {[%clk 0:00:12.4]} 108. Ra1+ {[%clk 0:00:15.4]}
108... Kb4 {[%clk 0:00:12.9]} 109. Rb1 {[%clk 0:00:15.6]} 109... Rxb1 {[%clk
0:00:10.4]} 110. Kxb1 {[%clk 0:00:16]} 1/2-1/2